bitfinex/quotes_BTCUSD_20260104
["timestamp","ask_amount","ask_price","bid_price","bid_amount"]
[1767505239809,0.01090441,91329.0,91325.0,0.0119489]
[1767505240168,0.01090441,91329.0,91325.0,0.0109499]
[1767505240492,0.05474485,91333.0,91326.0,0.01094978]
[1767505241053,0.05474569,91332.0,91326.0,0.01094978]
[1767505241247,0.06046286,91330.0,91325.0,0.0109499]
[1767505241542,0.06046286,91330.0,91326.0,0.01094978]
[1767505242318,0.04951356,91330.0,91326.0,0.01094978]
[1767505243326,0.04951356,91330.0,91327.0,0.01094966]
[1767505243514,0.04951356,91330.0,91326.0,0.01094978]
[1767505245520,0.06046286,91330.0,91326.0,0.01094978]
[1767505246107,0.01094918,91331.0,91326.0,0.01094978]
[1767505247908,0.0109493,91330.0,91325.0,0.0109499]
[1767505248111,0.0109493,91330.0,91326.0,0.01094978]
[1767505249344,0.01094942,91329.0,91324.0,0.01095002]
[1767505249533,0.01094942,91329.0,91325.0,0.0109499]
[1767505249696,0.0109493,91330.0,91325.0,0.0109499]
[1767505250910,0.06569557,91331.0,91325.0,0.05985896]
[1767505251107,0.01094906,91332.0,91331.0,0.000999]
[1767505251310,0.04951356,91330.0,91326.0,0.01094978]
[1767505251535,0.01194818,91331.0,91326.0,0.01094978]
[1767505253540,0.01194818,91331.0,91327.0,0.01094966]
[1767505253746,0.01194818,91331.0,91326.0,0.01094978]
[1767505255446,0.01194818,91331.0,91327.0,0.01094966]
[1767505255636,0.000999,91331.0,91327.0,0.01094966]
[1767505256235,0.04970374,91331.0,91327.0,0.01094966]
[1767505256650,0.0109493,91330.0,91325.0,0.06569902]
[1767505256867,0.000999,91325.0,91324.0,0.01095002]
[1767505257635,0.000999,91324.0,91321.0,4.319e-05]
[1767505257800,0.000999,91324.0,91321.0,0.01099357]
[1767505257801,0.010999,91324.0,91321.0,0.01099357]
[1767505258001,0.01,91324.0,91321.0,4.319e-05]
[1767505258207,0.02095002,91324.0,91321.0,4.319e-05]
[1767505258568,0.02095002,91324.0,91321.0,1.9e-07]
[1767505258774,0.04951356,91323.0,91321.0,1.9e-07]
[1767505258978,0.0604637,91323.0,91320.0,1.9e-07]
[1767505259182,0.0604637,91323.0,91320.0,5.515e-05]
[1767505259387,0.01095014,91323.0,91320.0,1.5e-07]
[1767505260201,0.05475131,91322.0,91320.0,1.5e-07]
[1767505260639,0.0451181,91321.0,91320.0,1.5e-07]
[1767505261090,0.05475131,91322.0,91320.0,1.5e-07]
[1767505263391,0.05606824,91323.0,91320.0,1.5e-07]
[1767505263794,0.05602323,91323.0,91320.0,1.5e-07]
[1767505265646,0.05592523,91323.0,91320.0,1.5e-07]
[1767505266629,0.11067648,91323.0,91320.0,1.5e-07]
[1767505267835,0.06555838,91323.0,91320.0,1.5e-07]
[1767505268813,0.05475185,91322.0,91320.0,1.5e-07]
[1767505276117,0.0451181,91321.0,91320.0,1.5e-07]
[1767505278304,0.05475185,91322.0,91320.0,1.5e-07]
[1767505278503,0.09986995,91322.0,91320.0,1.5e-07]
[1767505280188,0.0451181,91321.0,91320.0,1.5e-07]
[1767505280379,0.01095002,91324.0,91299.0,0.03287302]
[1767505280380,0.06571352,91306.0,91299.0,0.03287302]
[1767505280585,0.01095254,91303.0,91299.0,0.0047738]
[1767505280796,0.01095242,91304.0,91303.0,0.01]
[1767505281966,0.01095242,91304.0,91299.0,0.0047738]
[1767505282209,0.01095254,91303.0,91299.0,0.01572682]
[1767505282383,0.01095242,91304.0,91299.0,0.01572682]
[1767505283082,0.01095242,91304.0,91300.0,0.0109529]
[1767505283320,0.06571429,91305.0,91299.0,0.01572682]
[1767505283881,4.706e-05,91306.0,91299.0,0.01572682]
[1767505284076,0.0109523,91305.0,91300.0,0.0109529]
[1767505284465,0.01090728,91305.0,91300.0,0.0109529]
[1767505284926,0.01095242,91304.0,91300.0,0.0109529]
[1767505285281,0.01090728,91305.0,91300.0,0.0109529]
[1767505285706,0.01095242,91304.0,91300.0,0.0109529]
[1767505286272,0.01090728,91305.0,91300.0,0.0109529]
[1767505286511,0.01099924,91306.0,91301.0,0.01095278]
[1767505286771,0.0109523,91305.0,91299.0,0.0047738]
[1767505287119,0.01095266,91302.0,91297.0,0.01095326]
[1767505287324,0.01095278,91301.0,91297.0,0.01095326]
[1767505287529,0.01095278,91301.0,91295.0,0.06572097]
[1767505287730,0.0109529,91300.0,91295.0,0.0109535]
[1767505288091,0.05607112,91299.0,91295.0,0.0109535]
[1767505288324,0.05607112,91299.0,91290.0,0.0109541]
[1767505288325,0.000999,91295.0,91289.0,0.06572516]
[1767505288479,0.0119525,91295.0,91291.0,0.01095398]
[1767505288682,0.0119525,91295.0,91290.0,0.0109541]
[1767505288896,0.05607148,91296.0,91291.0,0.01095398]
[1767505289097,0.05607148,91296.0,91292.0,0.01095386]
[1767505289295,0.0109535,91295.0,91291.0,0.01095398]
[1767505289720,0.05607148,91296.0,91291.0,0.01095398]
[1767505290223,0.0109535,91295.0,91290.0,0.0109541]
[1767505290458,0.05874473,91295.0,91291.0,0.01095398]
[1767505290620,0.04779123,91295.0,91291.0,0.01095398]
[1767505290827,0.01095338,91296.0,91291.0,0.01095398]
[1767505291154,0.01095338,91296.0,91292.0,0.01095386]
[1767505291323,0.04779123,91295.0,91289.0,0.06572483]
[1767505291528,0.04779123,91295.0,91289.0,0.01095422]
[1767505291529,0.01095362,91294.0,91289.0,0.01095422]
[1767505291786,0.0109535,91295.0,91290.0,0.0109541]
[1767505291923,0.01095362,91294.0,91289.0,0.01095422]
[1767505293775,0.05476536,91299.0,91289.0,0.01095422]
[1767505293776,0.01095302,91299.0,91293.0,0.01095374]
[1767505293944,0.01095338,91296.0,91292.0,0.01095386]
[1767505294146,0.01095326,91297.0,91293.0,0.01095374]
[1767505295254,0.01095326,91297.0,91292.0,0.01095386]
[1767505296834,0.03287314,91298.0,91293.0,0.01095374]
[1767505298095,0.03278494,91298.0,91293.0,0.01095374]
[1767505298315,0.00962778,91298.0,91292.0,0.01095386]
[1767505298530,0.02058092,91298.0,91292.0,0.06572271]
[1767505299437,0.02058092,91298.0,91293.0,0.01095374]
[1767505300095,0.01095326,91297.0,91293.0,0.01095374]
[1767505300302,0.02058092,91298.0,91294.0,0.01095362]
[1767505301091,0.02058092,91298.0,91293.0,0.01095374]
[1767505302378,0.01095302,91299.0,91298.0,0.000999]
[1767505302598,0.0657179,91300.0,91298.0,0.01]
[1767505302828,0.0657179,91300.0,91298.0,3e-08]
[1767505303037,0.0005127,91298.0,91295.0,0.0109535]
[1767505303181,0.0004245,91298.0,91294.0,0.01095362]
[1767505304228,0.01095326,91297.0,91292.0,0.06572266]
[1767505304472,0.0004245,91298.0,91295.0,0.0109535]
[1767505311946,0.0004245,91298.0,91294.0,0.01095362]
[1767505312980,0.0004245,91298.0,91295.0,0.0109535]
[1767505313784,0.0004245,91298.0,91293.0,0.01095374]
[1767505314186,0.0004245,91298.0,91294.0,0.01095362]
[1767505314394,0.01137764,91298.0,91293.0,0.01095374]
[1767505314718,0.0109529,91300.0,91294.0,0.01095362]
[1767505314917,0.0109529,91300.0,91293.0,0.06572201]
[1767505315080,0.01095314,91298.0,91293.0,0.06572201]
[1767505315282,0.04565988,91298.0,91295.0,0.0109535]
[1767505315553,0.0109529,91300.0,91295.0,0.0109535]
[1767505315714,0.05661278,91300.0,91295.0,0.0109535]
[1767505315916,0.05661278,91300.0,91296.0,0.01095338]
[1767505316517,0.05661278,91300.0,91295.0,0.0109535]
[1767505316870,0.05661278,91300.0,91296.0,0.01095338]
[1767505317007,0.05661278,91300.0,91295.0,0.0109535]
[1767505319038,0.04565988,91300.0,91296.0,0.01095338]
[1767505319626,0.04565988,91300.0,91297.0,0.01095326]
[1767505319828,0.04559101,91300.0,91297.0,0.01095326]
[1767505320032,0.00815549,91301.0,91297.0,0.01095326]
[1767505320475,0.01095266,91302.0,91297.0,0.01095326]
[1767505320673,0.05476247,91304.0,91297.0,0.01095326]
[1767505320674,0.01095242,91304.0,91299.0,0.01095302]
[1767505321201,0.0109523,91305.0,91300.0,0.0109529]
[1767505321374,0.04699931,91313.0,91308.0,0.01095194]
[1767505321375,0.01095134,91313.0,91308.0,0.01095194]
[1767505321579,0.02192,91316.0,91310.0,0.0109517]
[1767505321743,0.03287074,91318.0,91312.0,0.01095146]
[1767505321943,0.01095086,91317.0,91312.0,0.01095146]
[1767505322203,0.01095062,91319.0,91313.0,0.01095134]
[1767505322358,0.01095062,91319.0,91314.0,0.01095122]
[1767505322773,0.000999,91314.0,91313.0,0.01095134]
[1767505323199,0.01095074,91318.0,91313.0,0.01095134]
[1767505323435,0.01095062,91319.0,91314.0,0.01095122]
[1767505323626,0.01095074,91318.0,91313.0,0.01095134]
[1767505323803,0.01095074,91318.0,91314.0,0.01095122]
[1767505324123,0.000999,91314.0,91313.0,0.01095134]
[1767505324268,0.01095074,91318.0,91313.0,0.01095134]
[1767505324922,0.010999,91313.0,91311.0,0.01095158]
[1767505325419,0.01,91313.0,91311.0,0.01095158]
[1767505325624,0.0109511,91315.0,91311.0,0.01095158]
[1767505325825,0.0109511,91315.0,91310.0,0.0109517]
[1767505326229,0.0109511,91315.0,91311.0,0.01095158]
[1767505326610,0.000999,91311.0,91310.0,0.0109517]
[1767505326962,0.0109511,91315.0,91310.0,0.0109517]
[1767505327132,0.0109511,91315.0,91311.0,0.01095158]
[1767505328136,0.01095098,91316.0,91312.0,0.01095146]
[1767505328486,0.04699931,91317.0,91313.0,0.01095134]
[1767505329335,0.05794993,91319.0,91314.0,0.01095122]
[1767505331739,0.00089899,91314.0,91313.0,0.01095134]
[1767505332068,0.05795005,91318.0,91313.0,0.01095134]
[1767505332806,0.01095086,91317.0,91313.0,0.01095134]
[1767505333013,0.05795017,91317.0,91313.0,0.01095134]
[1767505333214,0.04699931,91317.0,91313.0,0.01095134]
[1767505333518,0.05795017,91317.0,91313.0,0.01095134]
[1767505333946,0.04699931,91317.0,91313.0,0.01095134]
[1767505334386,0.04699931,91317.0,91313.0,0.01005234]
[1767505334599,0.04699931,91317.0,91314.0,0.01095122]
[1767505338920,0.04600031,91317.0,91314.0,0.01095122]
[1767505339271,0.04699931,91319.0,91315.0,0.0109511]
[1767505339435,0.05794993,91319.0,91314.0,0.01095122]
[1767505340410,0.04699931,91319.0,91315.0,0.0109511]
[1767505341715,0.05794993,91319.0,91315.0,0.0109511]
[1767505343638,0.04699931,91319.0,91316.0,0.01095098]
[1767505343792,0.04699931,91319.0,91315.0,0.0109511]
[1767505344002,0.0109505,91320.0,91315.0,0.0109511]
[1767505344411,0.05843243,91321.0,91316.0,0.01095098]
[1767505344617,0.05843243,91321.0,91316.0,0.00695807]
[1767505344787,0.05843243,91321.0,91316.0,0.00463901]
[1767505344987,0.05834422,91321.0,91315.0,0.0109511]
[1767505345544,0.0109505,91320.0,91315.0,0.0109511]
[1767505345750,0.05794981,91320.0,91315.0,0.0109511]
[1767505346355,0.05794993,91319.0,91315.0,0.0109511]
[1767505347009,0.05794993,91319.0,91314.0,0.06570695]
[1767505347010,0.05795005,91318.0,91314.0,0.01095122]
[1767505347203,0.010999,91315.0,91311.0,0.01095158]
[1767505347503,0.01,91315.0,91312.0,0.06570838]
[1767505347678,0.05795005,91318.0,91314.0,0.01095122]
[1767505348181,0.04699931,91318.0,91314.0,0.01095122]
[1767505348483,0.04699931,91318.0,91315.0,0.0109511]
[1767505349487,0.0109505,91320.0,91316.0,0.01095098]
[1767505350049,0.05834422,91321.0,91316.0,0.01095098]
[1767505350266,0.00039453,91321.0,91318.0,0.01095074]
[1767505350576,0.06569835,91327.0,91320.0,0.06570282]
[1767505350577,0.01094966,91327.0,91320.0,0.06570282]
[1767505352125,0.01094978,91326.0,91321.0,0.01095038]
[1767505352842,0.0109499,91325.0,91321.0,0.01095038]
[1767505353413,0.0109499,91325.0,91320.0,0.0109505]
[1767505353625,0.0109499,91325.0,91320.0,0.0099515]
[1767505354634,0.01095002,91324.0,91319.0,0.01095062]
[1767505354793,0.0109499,91325.0,91319.0,0.06570332]
[1767505355823,0.06023095,91325.0,91320.0,0.0109505]
[1767505356498,0.04928105,91325.0,91321.0,0.01095038]
[1767505358591,0.06023095,91325.0,91320.0,0.0109505]
[1767505359609,0.06023095,91325.0,91321.0,0.01095038]
[1767505360233,0.01095002,91324.0,91320.0,0.0109505]
[1767505360566,0.06023107,91324.0,91319.0,0.01095062]
[1767505361047,0.01095014,91323.0,91319.0,0.01095062]
[1767505361725,0.06023119,91323.0,91318.0,0.01095074]
[1767505361926,0.01095026,91322.0,91317.0,0.01095086]
[1767505362125,0.01095038,91321.0,91317.0,0.01095086]
[1767505362329,0.06023119,91323.0,91317.0,0.01095086]
[1767505362843,0.06023119,91323.0,91319.0,0.01095062]
[1767505363648,0.04928105,91323.0,91319.0,0.01095062]
[1767505365044,0.04928105,91323.0,91320.0,0.0109505]
[1767505366100,0.04928105,91323.0,91319.0,0.01095062]
[1767505366436,0.04928105,91323.0,91320.0,0.0109505]
[1767505373466,0.04828205,91323.0,91320.0,0.0109505]
[1767505378827,0.04828205,91323.0,91319.0,0.01095062]
[1767505379010,0.04828205,91323.0,91320.0,0.0109505]
[1767505380262,0.04828205,91323.0,91319.0,0.01095062]
[1767505380440,0.04828205,91323.0,91320.0,0.0109505]
[1767505381885,0.0109499,91325.0,91320.0,0.0109505]
[1767505381886,0.0109499,91325.0,91321.0,0.01095038]
[1767505382215,0.0109499,91325.0,91322.0,0.01095026]
[1767505382216,0.04693652,91325.0,91322.0,0.01095026]
[1767505382411,0.04693652,91325.0,91321.0,0.01095038]
[1767505383027,0.04693652,91325.0,91322.0,0.01095026]
[1767505383239,0.04693652,91325.0,91321.0,0.06570214]
[1767505384488,0.05788642,91325.0,91321.0,0.01095038]
[1767505384690,0.04693652,91325.0,91321.0,0.01095038]
[1767505387886,0.04693652,91323.0,91320.0,0.0109505]
[1767505388095,0.000999,91321.0,91320.0,0.0109505]
[1767505388234,0.04793552,91321.0,91320.0,0.0109505]
[1767505388689,0.04693652,91321.0,91320.0,0.0109505]
[1767505396017,0.04693652,91321.0,91319.0,0.02665384]
[1767505396146,0.01094978,91326.0,91315.0,0.18198977]
[1767505396347,0.01094978,91326.0,91320.0,0.05475207]
[1767505396760,0.01094978,91326.0,91320.0,0.06570257]
[1767505397945,0.01094978,91326.0,91321.0,0.01095038]
[1767505398910,0.0109499,91325.0,91322.0,0.04842054]
[1767505399526,0.0109499,91325.0,91322.0,0.04147839]
[1767505399668,0.0109499,91325.0,91322.0,0.03585129]
[1767505400284,0.0109499,91325.0,91322.0,0.02585129]
[1767505401543,0.0109499,91325.0,91320.0,0.05937104]
[1767505402233,0.06569989,91325.0,91320.0,0.04842054]
[1767505402456,0.01095002,91324.0,91320.0,0.05937104]
[1767505404126,0.01095002,91324.0,91316.0,0.05475453]
[1767505404127,0.03301962,91334.0,91330.0,0.04842054]
[1767505404392,0.01094906,91332.0,91327.0,0.01094966]
[1767505404687,0.01094894,91333.0,91328.0,0.01094954]
[1767505406860,0.01094894,91333.0,91327.0,0.01094966]
[1767505407036,0.01094906,91332.0,91325.0,0.0109499]
[1767505407196,0.0109493,91330.0,91326.0,0.01094978]
[1767505407392,0.01094918,91331.0,91325.0,0.0109499]
[1767505408754,0.01094918,91331.0,91326.0,0.01094978]
[1767505409323,0.01094906,91332.0,91327.0,0.01094966]
[1767505410036,0.0109493,91330.0,91326.0,0.01094978]
[1767505410249,0.01094918,91331.0,91326.0,0.01094978]
[1767505412499,0.01094918,91331.0,91327.0,0.01094966]
[1767505412705,0.0109493,91330.0,91325.0,0.0109499]
[1767505412946,0.0109493,91330.0,91326.0,0.01094978]
[1767505413123,0.0109493,91330.0,91325.0,0.0109499]
[1767505413393,0.0109493,91330.0,91326.0,0.01094978]
[1767505413543,0.01094918,91331.0,91326.0,0.01094978]
[1767505414132,0.0109493,91330.0,91325.0,0.0109499]
[1767505416716,0.0109493,91330.0,91324.0,0.06569998]
[1767505416928,0.01094942,91329.0,91325.0,0.0109499]
[1767505417148,0.0109493,91330.0,91325.0,0.0109499]
[1767505417339,0.01094942,91329.0,91324.0,0.04873135]
[1767505417545,0.01094954,91328.0,91324.0,0.05968137]
[1767505418466,0.01094942,91329.0,91324.0,0.05968137]
[1767505418665,0.01094954,91328.0,91323.0,0.01095014]
[1767505418888,0.01094954,91328.0,91324.0,0.01095002]
[1767505419426,0.06569547,91331.0,91324.0,0.01095002]
[1767505419427,0.01094918,91331.0,91325.0,0.0109499]
[1767505419657,0.0109493,91330.0,91328.0,0.010999]
[1767505419809,0.0109493,91330.0,91328.0,0.01]
[1767505420010,0.0109493,91330.0,91326.0,0.01094978]
[1767505420657,0.01094918,91331.0,91327.0,0.01094966]
[1767505420867,0.01094918,91331.0,91326.0,0.01094978]
[1767505421313,0.01094906,91332.0,91327.0,0.01094966]
[1767505421963,0.01094918,91331.0,91327.0,0.01094966]
[1767505422168,0.01094906,91332.0,91331.0,0.010999]
[1767505422395,0.01094906,91332.0,91331.0,0.01]
[1767505422804,0.01094906,91332.0,91328.0,0.01094954]
[1767505423695,0.01094918,91331.0,91326.0,0.01094978]
[1767505425863,0.0109493,91330.0,91325.0,0.0109499]
[1767505426070,0.0109493,91330.0,91326.0,0.01094978]
[1767505426892,0.0109493,91330.0,91325.0,0.0109499]
[1767505427587,0.0109493,91330.0,91326.0,0.01094978]
[1767505428018,0.01094918,91331.0,91326.0,0.01094978]
[1767505430329,0.0109493,91330.0,91326.0,0.01094978]
[1767505434891,0.01094918,91331.0,91326.0,0.01094978]
[1767505435040,0.0109493,91330.0,91325.0,0.0109499]
[1767505435245,0.01094918,91331.0,91326.0,0.01094978]
[1767505435802,0.0109493,91330.0,91325.0,0.0109499]
[1767505436990,0.0001508,91334.0,91325.0,0.0109499]
[1767505436991,0.0001508,91334.0,91329.0,0.04873135]
[1767505437201,0.0001508,91334.0,91322.0,0.24092376]
[1767505437202,0.01094774,91343.0,91338.0,0.04873135]
[1767505437570,0.01094774,91343.0,91340.0,0.04873135]
[1767505437794,0.01094774,91343.0,91340.0,0.04868631]
[1767505440288,0.01094762,91344.0,91340.0,0.04868631]
[1767505441671,0.01094762,91344.0,91340.0,0.05963441]
[1767505442228,0.01094762,91344.0,91340.0,0.04868631]
[1767505442634,0.01094762,91344.0,91340.0,0.05963441]
[1767505443011,0.0109475,91345.0,91340.0,0.05963441]
[1767505443398,0.01094738,91346.0,91341.0,0.05673591]
[1767505443826,0.01094738,91346.0,91342.0,0.01094786]
[1767505445169,0.01094738,91346.0,91341.0,0.05673591]
[1767505445370,0.0109475,91345.0,91341.0,0.05673591]
[1767505445530,0.0109475,91345.0,91341.0,0.04578793]
[1767505446653,0.01094738,91346.0,91345.0,0.000999]
[1767505446898,0.01094738,91346.0,91341.0,0.01094798]
[1767505447753,0.0109475,91345.0,91341.0,0.01094798]
[1767505449111,0.01094738,91346.0,91341.0,0.01094798]
[1767505449316,0.01094726,91347.0,91342.0,0.01094786]
[1767505451829,0.01094726,91347.0,91340.0,0.0109481]
[1767505451830,0.01094738,91346.0,91340.0,0.0109481]
[1767505452031,0.0109475,91345.0,91340.0,0.05673603]
[1767505452797,0.01094762,91344.0,91339.0,0.01094822]
[1767505452956,0.01094774,91343.0,91339.0,0.05673615]
[1767505453141,0.01094774,91343.0,91339.0,0.01094822]
[1767505453345,0.01094786,91342.0,91337.0,0.01094846]
[1767505453547,0.01094774,91343.0,91337.0,0.01094846]
[1767505453749,0.01094786,91342.0,91337.0,0.01094846]
[1767505453954,0.01094798,91341.0,91336.0,0.07865651]
[1767505454359,0.01094798,91341.0,91337.0,0.01094846]
[1767505454555,0.01094798,91341.0,91336.0,0.07865651]
[1767505454755,0.01094798,91341.0,91337.0,0.01094846]
[1767505455166,0.01094786,91342.0,91337.0,0.01094846]
[1767505455610,0.01094786,91342.0,91338.0,0.01094834]
[1767505455814,0.01094774,91343.0,91338.0,0.01094834]
[1767505456729,0.01094762,91344.0,91339.0,0.01094822]
[1767505457100,0.01094762,91344.0,91340.0,0.0109481]
[1767505457463,0.01094762,91344.0,91339.0,0.01094822]
[1767505457585,0.01094762,91344.0,91340.0,0.0109481]
[1767505457788,0.01094774,91343.0,91338.0,0.01094834]
[1767505458100,0.01094762,91344.0,91339.0,0.01094822]
[1767505458475,0.01094762,91344.0,91340.0,0.0109481]
[1767505459281,0.01094762,91344.0,91339.0,0.01102682]
[1767505459504,0.01094774,91343.0,91339.0,7.86e-05]
[1767505459981,0.01094786,91342.0,91339.0,7.86e-05]
[1767505462014,0.06568757,91342.0,91339.0,7.86e-05]
[1767505462166,0.05474043,91341.0,91339.0,7.86e-05]
[1767505462362,0.06568757,91342.0,91339.0,7.86e-05]
[1767505463527,0.00994886,91342.0,91339.0,7.86e-05]
[1767505463889,0.01094774,91343.0,91339.0,0.01102682]
[1767505464473,0.01094762,91344.0,91339.0,0.01102682]
[1767505465533,0.01094762,91344.0,91340.0,0.0109481]
[1767505465977,0.0109475,91345.0,91340.0,0.0109481]
[1767505466176,0.01094762,91344.0,91340.0,0.0109481]
[1767505467018,0.01094762,91344.0,91339.0,0.01102682]
[1767505467227,0.01094786,91342.0,91339.0,7.86e-05]
[1767505467963,0.01094774,91343.0,91339.0,7.86e-05]
[1767505468525,0.01094774,91343.0,91339.0,0.01102682]
[1767505470143,0.01094774,91343.0,91339.0,7.86e-05]
[1767505470348,0.01094762,91344.0,91339.0,7.86e-05]
[1767505470349,0.01094762,91344.0,91339.0,0.01102682]
[1767505471136,0.01094762,91344.0,91339.0,0.01093674]
[1767505471337,0.01094762,91344.0,91339.0,0.01084722]
[1767505471578,0.01094762,91344.0,91339.0,0.01080312]
[1767505472697,0.01094762,91344.0,91340.0,0.0109481]
[1767505472877,0.06568547,91345.0,91340.0,0.0109481]
[1767505476505,0.01094762,91344.0,91340.0,0.0109481]
[1767505478472,0.0109475,91345.0,91341.0,0.01094798]
[1767505478698,0.0109475,91345.0,91341.0,0.01090388]
[1767505478878,0.0109475,91345.0,91340.0,0.0109481]
[1767505480885,0.01094762,91344.0,91339.0,0.01080312]
[1767505481088,0.01094762,91344.0,91340.0,0.0109481]
[1767505481289,0.01094762,91344.0,91339.0,0.01080312]
[1767505483080,0.01094774,91343.0,91338.0,0.01094834]
[1767505483292,7.863e-05,91343.0,91339.0,0.01094822]
[1767505484265,7.863e-05,91343.0,91339.0,0.01085815]
[1767505484918,0.01102637,91343.0,91338.0,0.01094834]
[1767505485392,7.863e-05,91343.0,91339.0,0.01094822]
[1767505487611,0.01102637,91343.0,91339.0,0.01094822]
[1767505488196,0.000999,91339.0,91338.0,0.01090424]
[1767505488402,0.01102637,91343.0,91339.0,0.01094822]
[1767505489945,0.00602637,91343.0,91339.0,0.01094822]
[1767505490415,0.01094762,91344.0,91339.0,0.01094822]
[1767505492605,0.01094762,91344.0,91340.0,0.0109481]
[1767505492970,0.01094762,91344.0,91340.0,0.01090306]
[1767505495754,0.03283808,91359.0,91322.0,0.21900411]
[1767505495755,0.0454151,91349.0,91322.0,0.21900411]
[1767505495923,0.05474235,91337.0,91330.0,0.05474606]
[1767505496068,0.01094846,91337.0,91333.0,0.01094894]
[1767505496271,0.0109493,91330.0,91322.0,0.01102889]
[1767505496515,0.01094942,91329.0,91324.0,0.01095002]
[1767505496732,0.01094942,91329.0,91323.0,0.01095014]
[1767505496733,0.01094954,91328.0,91323.0,0.01095014]
[1767505496936,0.01061082,91328.0,91324.0,0.01095002]
[1767505497326,0.01061082,91328.0,91323.0,0.01095014]
[1767505497527,0.01094966,91327.0,91323.0,0.01095014]
[1767505497733,0.01061082,91328.0,91323.0,0.01095014]
[1767505497889,0.01061082,91328.0,91322.0,0.06577983]
[1767505497890,0.01094966,91327.0,91322.0,0.01102889]
[1767505498095,0.01094966,91327.0,91323.0,0.02188]
[1767505498430,0.01061082,91328.0,91323.0,0.03283014]
[1767505498609,0.01061082,91328.0,91323.0,0.02188]
[1767505498610,0.01094978,91326.0,91323.0,0.02188]
[1767505499014,0.01094966,91327.0,91323.0,0.02188]
[1767505499231,0.01061082,91328.0,91323.0,0.03283014]
[1767505499728,0.01061082,91328.0,91323.0,0.01095014]
[1767505499934,0.01061082,91328.0,91323.0,0.03283014]
[1767505500904,0.01061082,91328.0,91324.0,0.01095002]
[1767505501289,0.01094978,91326.0,91323.0,0.02188]
[1767505501445,0.000999,91324.0,91323.0,0.02188]
[1767505501657,0.05474992,91325.0,91323.0,0.0218359]
[1767505502063,0.06569911,91326.0,91323.0,0.0218359]
[1767505502466,0.06569911,91326.0,91323.0,0.0208369]
[1767505503362,0.01094978,91326.0,91323.0,0.0208369]
[1767505503765,0.01094978,91326.0,91322.0,7.863e-05]
[1767505503951,0.01094978,91326.0,91322.0,0.01102889]
[1767505504366,0.01094966,91327.0,91322.0,0.01102889]
[1767505504810,0.01094966,91327.0,91323.0,0.01095014]
[1767505505020,0.01061082,91328.0,91324.0,0.01095002]
[1767505505213,0.01061082,91328.0,91323.0,0.01095014]
[1767505505452,0.01090438,91329.0,91324.0,0.01095002]
[1767505505588,0.01094894,91333.0,91329.0,0.000999]
[1767505505790,0.01094882,91334.0,91329.0,0.01186024]
[1767505505986,0.01094882,91334.0,91329.0,0.01094942]
[1767505506185,0.01094882,91334.0,91327.0,0.01094966]
[1767505506186,0.02188,91339.0,91335.0,0.05856683]
[1767505506386,0.01094774,91343.0,91339.0,0.01]
[1767505506590,0.01094774,91343.0,91339.0,0.02094822]
[1767505506802,0.02188,91345.0,91343.0,0.000911]
[1767505507019,0.01094762,91344.0,91339.0,0.05856635]
[1767505507258,0.01094762,91344.0,91340.0,0.05856623]
[1767505507469,0.01094702,91349.0,91345.0,0.0109475]
[1767505507610,0.01094714,91348.0,91343.0,0.01094774]
[1767505507812,0.01094726,91347.0,91342.0,0.06568659]
[1767505508039,0.01094738,91346.0,91342.0,0.01094786]
[1767505508233,0.01094738,91346.0,91341.0,0.01094798]
[1767505508890,0.01094726,91347.0,91342.0,0.01094786]
[1767505509966,0.01094714,91348.0,91343.0,0.01094774]
[1767505510364,0.0454151,91347.0,91342.0,0.03121981]
[1767505510638,0.01094714,91348.0,91342.0,0.03121981]
[1767505510966,0.01094714,91348.0,91343.0,0.01094774]
[1767505511154,0.01094726,91347.0,91342.0,0.01094786]
[1767505511551,0.01094714,91348.0,91343.0,0.01094774]
[1767505512182,0.01094726,91347.0,91342.0,0.01094786]
[1767505512897,0.0109475,91345.0,91340.0,0.0109481]
[1767505513102,0.01094798,91341.0,91336.0,0.01094858]
[1767505513450,0.01094774,91343.0,91338.0,0.01094834]
[1767505514630,0.01094774,91343.0,91338.0,0.01090425]
[1767505516003,0.0109475,91345.0,91338.0,0.0656457]
[1767505516186,0.01094762,91344.0,91340.0,0.0109481]
[1767505516391,0.01094762,91344.0,91340.0,0.01090401]
[1767505516774,0.01094762,91344.0,91339.0,0.01094822]
[1767505517551,0.0109475,91345.0,91340.0,0.0109481]
[1767505518976,0.0109475,91345.0,91340.0,0.01090401]
[1767505519614,0.0109475,91345.0,91341.0,0.01094798]
[1767505520024,0.0109475,91345.0,91340.0,0.01090401]
[1767505520227,0.0109475,91345.0,91341.0,0.01094798]
[1767505520383,0.0109475,91345.0,91340.0,0.01090401]
[1767505520989,0.0656838,91347.0,91342.0,0.01094786]
[1767505521223,0.01094738,91346.0,91341.0,0.01094798]
[1767505521989,0.0109475,91345.0,91340.0,0.01090401]
[1767505522192,0.01094762,91344.0,91340.0,0.01090401]
[1767505524186,0.0109475,91345.0,91340.0,0.01090401]
[1767505524608,0.0109475,91345.0,91341.0,0.01094798]
[1767505525562,0.0109475,91345.0,91341.0,0.01090389]
[1767505525935,0.0109475,91345.0,91340.0,0.01090401]
[1767505526340,0.0109475,91345.0,91341.0,0.01094798]
[1767505526482,0.0109475,91345.0,91340.0,0.01090401]
[1767505526833,0.01094762,91344.0,91340.0,0.01090401]
[1767505527377,0.01094762,91344.0,91339.0,0.01094822]
[1767505528037,0.01094762,91344.0,91340.0,0.0109481]
[1767505528399,0.0109475,91345.0,91340.0,0.0109481]
[1767505528826,0.01094762,91344.0,91340.0,0.0109481]
[1767505528979,0.0109475,91345.0,91340.0,0.0109481]
[1767505530222,0.01094738,91346.0,91340.0,0.0109481]
[1767505531080,0.01094762,91344.0,91340.0,0.0109481]
[1767505531739,0.0109475,91345.0,91340.0,0.0109481]
[1767505532447,0.01094726,91347.0,91345.0,0.010821]
[1767505532606,0.01094702,91349.0,91345.0,0.01077597]
[1767505532809,0.01094714,91348.0,91345.0,0.00743361]
[1767505533010,0.01094714,91348.0,91345.0,0.00436401]
[1767505533196,0.01094714,91348.0,91343.0,0.01094774]
[1767505536414,0.01094702,91349.0,91344.0,0.01094762]
[1767505536594,0.01094714,91348.0,91342.0,0.01094786]
[1767505536971,0.01094714,91348.0,91343.0,0.01094774]
[1767505537335,0.01094714,91348.0,91344.0,0.01094762]
[1767505537838,0.000999,91344.0,91342.0,0.01094786]
[1767505538361,0.01094714,91348.0,91343.0,0.01094774]
[1767505538778,0.01094726,91347.0,91343.0,0.01090365]
[1767505538976,0.01094726,91347.0,91342.0,0.01094786]
[1767505539200,0.01094738,91346.0,91341.0,0.06014872]
[1767505539744,0.0109475,91345.0,91341.0,0.04920074]
[1767505540579,0.01094762,91344.0,91341.0,0.04920074]
[1767505540781,0.0109475,91345.0,91341.0,0.04920074]
[1767505541077,0.01094738,91346.0,91341.0,0.06014872]
[1767505541244,0.01094726,91347.0,91342.0,0.01094786]
[1767505541446,0.01094726,91347.0,91342.0,0.01090283]
[1767505542318,0.01094726,91347.0,91343.0,0.01094774]
[1767505542525,0.01094714,91348.0,91344.0,0.01094762]
[1767505543231,0.01094702,91349.0,91345.0,0.06014824]
[1767505543434,0.01094702,91349.0,91345.0,0.0109475]